bitfinex/quotes_SOLUSD_20250108
["timestamp","ask_amount","ask_price","bid_price","bid_amount"]
[1736317529609,0.12549,195.67,195.59,13.54844927]
[1736317530545,0.12549,195.67,195.59,0.76664927]
[1736317530747,0.12549,195.67,195.6,0.76666417]
[1736317531113,0.12549,195.67,195.57,20.76659778]
[1736317531543,0.12549,195.67,195.58,23.776884]
[1736317532317,0.12549,195.67,195.57,20.76659778]
[1736317532318,0.62549,195.67,195.57,20.0]
[1736317533713,0.12549,195.67,195.58,23.776884]
[1736317536442,0.12549,195.65,195.58,23.776884]
[1736317537516,0.12549,195.63,195.58,23.776884]
[1736317541556,9.9922,195.68,195.58,23.776884]
[1736317541756,0.12549,195.67,195.58,23.776884]
[1736317542127,0.62549,195.67,195.58,23.776884]
[1736317545861,0.12549,195.64,195.58,23.776884]
[1736317546467,0.12549,195.66,195.58,23.776884]
[1736317548968,20.0,195.65,195.58,23.776884]
[1736317549158,20.0,195.65,195.57,20.0]
[1736317549159,0.12549,195.62,195.57,20.0]
[1736317549365,0.62549,195.62,195.57,20.0]
[1736317551865,2.46,195.61,195.57,20.0]
[1736317552076,0.12549,195.6,195.57,20.0]
[1736317552490,6.98839,195.6,195.57,20.0]
[1736317553363,6.98839,195.6,195.57,18.3334]
[1736317553583,0.12549,195.58,195.57,18.3334]
[1736317553790,0.62549,195.58,195.57,18.3334]
[1736317553996,0.12549,195.58,195.57,18.3334]
[1736317554581,20.12549,195.58,195.57,18.3334]
[1736317556389,1.15559,195.58,195.57,16.6668]
[1736317556693,1.15559,195.58,195.57,15.518]
[1736317556894,6.15559,195.58,195.57,15.518]
[1736317557195,1.15559,195.58,195.57,15.518]
[1736317557356,1.15559,195.58,195.57,7.8213]
[1736317557357,11.22759,195.58,195.57,7.8213]
[1736317557559,2.58549,195.58,195.57,0.237]
[1736317559154,7.58549,195.58,195.57,0.237]
[1736317560969,0.12549,195.58,195.57,0.237]
[1736317561173,2.46,195.58,195.57,0.237]
[1736317561597,2.58549,195.58,195.57,0.237]
[1736317562188,0.12549,195.58,195.57,0.237]
[1736317562704,0.62549,195.58,195.57,0.237]
[1736317563472,0.12549,195.58,195.57,0.237]
[1736317567082,2.96,195.64,195.57,0.237]
[1736317567304,2.46,195.64,195.57,0.237]
[1736317567603,0.5,195.63,195.57,0.237]
[1736317568106,0.12549,195.62,195.57,0.237]
[1736317570006,20.0,195.61,195.57,0.237]
[1736317570210,0.62549,195.6,195.57,0.237]
[1736317571387,0.12549,195.62,195.57,0.237]
[1736317572512,2.46,195.63,195.57,0.237]
[1736317572681,0.5,195.65,195.57,0.237]
[1736317572878,0.12549,195.65,195.57,0.237]
[1736317573089,0.62549,195.65,195.57,0.237]
[1736317575706,0.12549,195.63,195.57,0.237]
[1736317575933,0.62549,195.63,195.57,0.237]
[1736317577483,0.12549,195.64,195.57,0.237]
[1736317577683,0.12549,195.62,195.57,0.237]
[1736317578502,22.46,195.66,195.57,0.237]
[1736317578715,20.5,195.69,195.59,23.776884]
[1736317579086,2.58549,195.68,195.59,23.776884]
[1736317579598,0.12549,195.66,195.59,23.776884]
[1736317580982,2.46,195.68,195.59,23.776884]
[1736317582216,0.62549,195.67,195.59,23.776884]
[1736317584794,0.62549,195.67,195.58,7.5994]
[1736317585421,0.62549,195.67,195.59,23.776884]
[1736317590522,0.12549,195.65,195.58,7.5994]
[1736317590706,0.62549,195.65,195.58,7.5994]
[1736317591219,0.62549,195.65,195.59,23.776884]
[1736317591904,0.62549,195.67,195.59,23.776884]
[1736317592416,0.12549,195.66,195.59,23.776884]
[1736317593303,0.12549,195.64,195.59,23.776884]
[1736317593506,0.62549,195.64,195.59,23.776884]
[1736317595110,0.12549,195.64,195.59,23.776884]
[1736317595519,0.12549,195.66,195.59,23.776884]
[1736317597218,2.46,195.67,195.59,23.776884]
[1736317597832,2.46,195.69,195.59,23.776884]
[1736317598126,0.12549,195.68,195.59,23.776884]
[1736317598499,2.46,195.69,195.59,23.776884]
[1736317598718,2.58549,195.71,195.59,23.776884]
[1736317601302,13.30573899,195.77,195.63,23.776884]
[1736317601626,13.30573899,195.77,195.65,8.1524]
[1736317601834,30.0,195.76,195.65,8.1524]
[1736317602010,0.12549,195.72,195.65,8.1524]
[1736317602207,2.44,195.71,195.65,8.1524]
[1736317602701,0.12549,195.7,195.65,8.1524]
[1736317603404,0.12549,195.67,195.58,7.5924]
[1736317603607,0.12549,195.67,195.59,23.776884]
[1736317604018,20.0,195.7,195.59,23.776884]
[1736317604224,20.12549,195.7,195.59,23.776884]
[1736317607217,0.12549,195.67,195.59,23.776884]
[1736317608134,20.12549,195.7,195.59,23.776884]
[1736317610925,30.0,195.69,195.58,7.5924]
[1736317611117,0.12549,195.65,195.58,7.5924]
[1736317611331,0.12549,195.63,195.58,7.5924]
[1736317612636,0.12549,195.63,195.59,23.776884]
[1736317620247,20.0,195.66,195.59,23.776884]
[1736317620248,2.44,195.66,195.59,23.776884]
[1736317620646,0.12549,195.65,195.59,23.776884]
[1736317623866,0.12549,195.63,195.58,7.5924]
[1736317624952,0.12549,195.61,195.58,7.5924]
[1736317625146,0.12549,195.61,195.57,0.237]
[1736317625344,20.12549,195.58,195.57,0.237]
[1736317625646,22.56549,195.58,195.57,0.237]
[1736317625864,2.56549,195.58,195.57,0.237]
[1736317626157,22.56549,195.58,195.57,0.237]
[1736317628442,2.56549,195.58,195.57,0.237]
[1736317629559,0.12549,195.58,195.57,32.109584]
[1736317629858,2.44,195.61,195.58,23.776884]
[1736317630062,0.12549,195.6,195.57,8.3327]
[1736317630559,0.12549,195.6,195.58,23.776884]
[1736317632455,0.12549,195.6,195.57,8.3327]
[1736317632834,0.12549,195.6,195.58,23.776884]
[1736317633368,0.12549,195.6,195.57,8.3327]
[1736317634155,0.12549,195.6,195.58,23.776884]
[1736317635383,0.12549,195.6,195.57,8.3327]
[1736317636160,20.0,195.69,195.58,23.776884]
[1736317636380,2.44,195.68,195.58,23.776884]
[1736317636690,20.0,195.69,195.58,23.776884]
[1736317636691,0.12549,195.65,195.58,23.776884]
[1736317637345,0.12549,195.66,195.58,23.776884]
[1736317637969,0.12549,195.64,195.58,23.776884]
[1736317638656,0.12549,195.66,195.58,23.776884]
[1736317641051,2.44,195.68,195.58,23.776884]
[1736317641474,0.12549,195.67,195.58,23.776884]
[1736317641672,0.12549,195.67,195.58,24.54360084]
[1736317641851,0.12549,195.67,195.6,23.776884]
[1736317642046,2.44,195.69,195.6,23.776884]
[1736317642047,0.12549,195.68,195.6,23.776884]
[1736317642488,0.12549,195.7,195.6,23.776884]
[1736317642676,2.56549,195.7,195.6,23.776884]
[1736317644084,0.12549,195.68,195.6,23.776884]
[1736317644994,0.12549,195.69,195.6,23.776884]
[1736317646064,0.12549,195.7,195.6,23.776884]
[1736317649678,0.12549,195.7,195.62,23.776884]
[1736317653481,0.12549,195.67,195.61,7.6202]
[1736317653867,0.12549,195.67,195.62,23.776884]
[1736317655177,20.0,195.7,195.62,23.776884]
[1736317655561,0.12549,195.69,195.62,23.776884]
[1736317656187,0.12549,195.7,195.62,23.776884]
[1736317659159,20.12549,195.7,195.62,23.776884]
[1736317659583,0.12549,195.7,195.62,23.776884]
[1736317660467,20.12549,195.7,195.62,23.776884]
[1736317664991,20.0,195.69,195.62,23.776884]
[1736317665192,0.12549,195.68,195.62,23.776884]
[1736317668280,20.0,195.66,195.61,7.6202]
[1736317668483,20.12549,195.65,195.61,7.6202]
[1736317668802,20.12549,195.63,195.61,7.6202]
[1736317668972,20.12549,195.63,195.57,0.237]
[1736317670380,0.12549,195.6,195.57,0.237]
[1736317677398,0.12549,195.63,195.57,0.237]
[1736317677590,0.12549,195.61,195.57,0.237]
[1736317678589,5.0,195.67,195.57,0.237]
[1736317678590,30.0,195.68,195.57,0.237]
[1736317678797,2.44,195.67,195.57,0.237]
[1736317679015,0.12549,195.66,195.57,0.237]
[1736317679486,20.0,195.65,195.57,0.237]
[1736317679683,0.12549,195.64,195.57,0.237]
[1736317680478,0.12549,195.62,195.57,0.237]
[1736317681375,0.12549,195.6,195.57,0.237]
[1736317683377,0.12549,195.58,195.57,0.237]
[1736317685882,20.0,195.58,195.57,0.237]
[1736317686088,22.44,195.58,195.57,0.237]
[1736317686287,22.56549,195.58,195.57,0.237]
[1736317688497,52.56549,195.58,195.57,0.237]
[1736317688796,22.56549,195.58,195.57,0.237]
[1736317689097,2.56549,195.58,195.57,0.237]
[1736317689301,22.56549,195.58,195.57,0.237]
[1736317689782,2.56549,195.58,195.57,0.237]
[1736317690107,22.56549,195.58,195.57,0.237]
[1736317690678,2.56549,195.58,195.57,0.237]
[1736317691419,22.56549,195.58,195.57,0.237]
[1736317692486,52.56549,195.58,195.57,0.237]
[1736317697192,81.342374,195.58,195.57,0.237]
[1736317697485,86.342374,195.58,195.57,0.237]
[1736317697799,52.56549,195.58,195.57,0.237]
[1736317698388,57.56549,195.58,195.57,0.237]
[1736317698593,62.56549,195.58,195.57,0.237]
[1736317698923,57.56549,195.58,195.57,0.237]
[1736317699105,86.342374,195.58,195.57,0.237]
[1736317699487,81.342374,195.58,195.57,0.237]
[1736317699793,86.342374,195.58,195.57,0.237]
[1736317700787,52.56549,195.58,195.57,0.237]
[1736317700979,57.56549,195.58,195.57,0.237]
[1736317701185,62.56549,195.58,195.57,0.237]
[1736317701495,86.342374,195.58,195.57,0.237]
[1736317708789,62.56549,195.58,195.57,0.237]
[1736317708996,32.56549,195.58,195.57,0.237]
[1736317709198,30.12549,195.58,195.57,0.237]
[1736317709406,32.56549,195.58,195.57,0.237]
[1736317709796,42.56549,195.58,195.57,0.237]
[1736317713615,66.342374,195.58,195.57,0.237]
[1736317713817,42.56549,195.58,195.57,0.237]
[1736317716900,66.342374,195.58,195.57,0.237]
[1736317718115,0.12549,195.46,195.45,7.727]
[1736317718323,20.12549,195.44,195.43,0.09166339]
[1736317719128,0.12549,195.45,195.43,0.09166339]
[1736317719533,30.0,195.54,195.44,7.7785]
[1736317719825,0.12549,195.52,195.44,7.7785]
[1736317720030,0.12549,195.49,195.44,7.7785]
[1736317720398,0.12549,195.47,195.44,7.7785]
[1736317721005,32.44,195.51,195.44,7.7785]
[1736317721006,22.44,195.51,195.44,7.7785]
[1736317721205,0.12549,195.48,195.44,7.7785]
[1736317723229,0.12549,195.46,195.44,7.7785]
[1736317723432,30.12549,195.46,195.44,7.7785]
[1736317723723,22.44,195.45,195.44,7.7785]
[1736317723929,22.56549,195.45,195.44,7.7785]
[1736317724298,32.44,195.45,195.43,0.09166339]
[1736317724695,0.12549,195.44,195.43,0.09166339]
[1736317727713,2.44,195.44,195.43,0.09166339]
[1736317727921,2.56549,195.44,195.43,0.09166339]
[1736317729921,2.44,195.48,195.43,7.88186339]
[1736317730221,20.0,195.52,195.44,23.776884]
[1736317730521,2.44,195.51,195.43,7.88186339]
[1736317730701,13.18422698,195.58,195.44,23.776884]
[1736317730903,13.18422698,195.58,195.46,23.776884]
[1736317731102,2.44,195.57,195.48,23.776884]
[1736317731322,20.0,195.55,195.47,7.9517]
[1736317731607,32.44,195.57,195.47,7.9517]
[1736317731809,13.18422698,195.58,195.47,7.9517]
[1736317732030,20.0,195.55,195.48,23.776884]
[1736317732536,22.56549,195.54,195.47,7.9517]
[1736317732745,52.56549,195.54,195.47,7.9517]
[1736317733908,0.12549,195.48,195.47,7.9517]
[1736317735409,0.12549,195.48,195.43,0.09166339]
[1736317735710,0.12549,195.46,195.43,0.09166339]
[1736317736320,20.0,195.44,195.43,0.09166339]
[1736317736526,20.12549,195.44,195.43,0.09166339]
[1736317737016,0.12549,195.44,195.43,0.09166339]
[1736317737212,20.12549,195.44,195.43,0.09166339]
[1736317737436,0.12549,195.44,195.43,0.09166339]
[1736317737724,22.56549,195.44,195.43,0.09166339]
[1736317738233,2.56549,195.44,195.43,0.09166339]
[1736317739322,22.56549,195.44,195.43,0.09166339]
[1736317739924,2.56549,195.44,195.43,0.09166339]
[1736317742717,0.12549,195.44,195.43,0.09166339]
[1736317750941,2.44,195.5,195.43,0.09166339]
[1736317751240,20.12549,195.52,195.45,23.776884]
[1736317751470,0.12549,195.5,195.44,8.0285]
[1736317759351,0.12549,195.5,195.45,23.776884]
[1736317760534,43.27541026,195.58,195.45,23.776884]
[1736317760535,2.46,195.52,195.45,23.776884]
[1736317760749,0.12549,195.51,195.45,23.776884]
[1736317763157,20.12549,195.51,195.44,8.0285]
[1736317763655,0.12549,195.51,195.44,8.0285]
[1736317764255,0.12549,195.51,195.45,23.776884]
[1736317771545,0.12549,195.51,195.44,8.0285]
[1736317775548,0.12549,195.51,195.45,23.776884]
[1736317776969,0.12549,195.49,195.44,8.0285]
[1736317777348,0.12549,195.47,195.44,8.0285]
[1736317778266,0.12549,195.49,195.44,8.0285]
[1736317778653,22.46,195.52,195.45,23.776884]
[1736317779157,0.12549,195.51,195.45,23.776884]
[1736317780368,0.12549,195.53,195.45,23.776884]
[1736317780569,2.46,195.52,195.45,23.776884]
[1736317780875,2.46,195.53,195.45,23.776884]
[1736317781269,0.12549,195.52,195.45,23.776884]
[1736317783476,0.12549,195.52,195.43,0.09166339]
[1736317783692,2.46,195.53,195.43,0.09166339]
[1736317784175,0.12549,195.48,195.43,0.09166339]
[1736317784358,0.12549,195.48,195.43,23.86854739]
[1736317785272,0.12549,195.46,195.43,0.09166339]
[1736317785584,0.12549,195.44,195.43,0.09166339]
[1736317788374,36.58974648,195.56,195.43,23.86854739]
[1736317788375,30.0,195.52,195.43,23.86854739]
[1736317788577,2.44,195.51,195.43,23.86854739]
[1736317788966,20.0,195.49,195.43,23.86854739]
[1736317789165,0.12549,195.48,195.43,23.86854739]
[1736317791506,0.12549,195.48,195.43,0.09166339]
[1736317792302,0.12549,195.46,195.43,0.09166339]
[1736317794098,20.0,195.49,195.43,0.09166339]
[1736317794490,0.12549,195.48,195.43,0.09166339]
[1736317796387,0.12549,195.46,195.43,0.09166339]
[1736317799705,0.12549,195.44,195.43,0.09166339]
[1736317799894,2.56549,195.44,195.43,0.09166339]
[1736317800405,22.56549,195.44,195.43,0.09166339]
[1736317801213,52.56549,195.44,195.43,0.09166339]
[1736317801704,22.56549,195.44,195.43,0.09166339]
[1736317801893,2.56549,195.44,195.43,0.09166339]
[1736317802093,49.12899572,195.48,195.43,0.09166339]
[1736317802290,2.44,195.47,195.43,0.09166339]
[1736317802610,2.44,195.46,195.43,0.09166339]
[1736317803385,0.12549,195.45,195.43,0.09166339]
[1736317803603,20.12549,195.45,195.43,0.09166339]
[1736317803803,2.44,195.46,195.43,0.09166339]
[1736317804018,0.12549,195.47,195.43,0.09166339]
[1736317804206,20.0,195.45,195.43,0.09166339]
[1736317804405,19.12899572,195.48,195.45,23.776884]
[1736317808711,19.12899572,195.48,195.44,7.9747]
[1736317809119,19.12899572,195.48,195.45,23.776884]
[1736317810300,19.12899572,195.48,195.45,28.776884]
[1736317810599,19.12899572,195.48,195.45,23.776884]
[1736317811393,19.12899572,195.48,195.44,7.9747]
[1736317811818,19.12899572,195.48,195.45,23.776884]
[1736317815923,0.12549,195.47,195.45,23.776884]
[1736317816104,0.12549,195.47,195.44,7.9747]
[1736317817894,19.12899572,195.48,195.45,23.776884]
[1736317820736,19.12899572,195.48,195.43,0.09166339]
[1736317820946,0.12549,195.47,195.43,0.09166339]
[1736317822642,0.12549,195.49,195.43,0.09166339]
[1736317830233,2.46,195.51,195.44,28.776884]
[1736317830548,7.89095372,195.58,195.46,23.776884]
[1736317830747,2.46,195.57,195.48,23.776884]
[1736317831054,0.12549,195.56,195.48,23.776884]
[1736317831652,0.12549,195.57,195.48,28.776884]
[1736317831841,2.58549,195.57,195.5,28.776884]
[1736317832149,2.58549,195.57,195.47,12.6432]
[1736317832452,2.58549,195.57,195.49,23.776884]
[1736317832638,2.58549,195.57,195.49,24.54385261]
[1736317834341,2.46,195.59,195.5,5.12549]
[1736317834577,17.41644059,195.65,195.56,10.05824812]
[1736317834734,17.41644059,195.65,195.63,10.05824812]
[1736317835065,7.89095372,195.67,195.65,23.776884]
[1736317835230,7.89095372,195.67,195.65,33.83513212]
[1736317835430,7.89095372,195.67,195.66,23.776884]
[1736317835636,0.12549,195.67,195.66,23.776884]
[1736317835851,0.12549,195.66,195.57,8.1308]
[1736317836059,2.58549,195.66,195.58,23.776884]
[1736317837234,2.46,195.68,195.58,34.60177623]
[1736317837434,0.12549,195.67,195.58,23.776884]
[1736317838772,0.12549,195.65,195.52,12.8284]
[1736317838933,0.12549,195.65,195.52,7.8284]
[1736317839348,20.0,195.65,195.53,23.776884]
[1736317839933,0.12549,195.64,195.53,23.776884]
[1736317841052,20.12549,195.67,195.53,23.776884]
[1736317841254,0.12549,195.64,195.53,23.776884]
[1736317843170,32.46,195.68,195.53,23.776884]
[1736317843171,20.12549,195.67,195.53,23.776884]
[1736317843459,20.0,195.65,195.52,8.59523592]
[1736317843676,20.0,195.64,195.52,7.8284]
[1736317843878,0.12549,195.63,195.53,23.776884]
[1736317844364,22.46,195.66,195.53,23.776884]
[1736317844749,0.12549,195.65,195.53,23.776884]
[1736317846948,0.12549,195.65,195.53,24.5437216]
[1736317847151,0.12549,195.65,195.53,23.776884]
[1736317848464,0.12549,195.65,195.52,7.8284]
[1736317849081,0.12549,195.65,195.53,23.776884]
[1736317850577,2.44,195.64,195.53,23.776884]
[1736317852778,0.12549,195.6,195.53,23.776884]
[1736317857980,20.0,195.63,195.53,23.776884]
[1736317858880,2.56549,195.62,195.53,23.776884]
[1736317860588,0.12549,195.6,195.53,23.776884]
[1736317861591,0.12549,195.6,195.52,7.8284]
[1736317862184,0.12549,195.6,195.53,23.776884]
[1736317863205,22.44,195.61,195.44,20.70549078]
[1736317863206,0.12549,195.58,195.44,8.0268]
[1736317863369,0.12549,195.55,195.44,8.0268]
[1736317863566,0.12549,195.53,195.44,8.0268]
[1736317863876,20.12549,195.53,195.44,8.0268]
[1736317865472,50.12549,195.53,195.44,8.0268]
[1736317866863,0.12549,195.53,195.44,8.0268]
[1736317867062,0.12549,195.53,195.45,23.776884]
[1736317867261,22.44,195.52,195.45,23.776884]
[1736317869681,2.44,195.52,195.45,23.776884]
[1736317870696,0.12549,195.53,195.45,23.776884]
[1736317870872,2.44,195.52,195.45,23.776884]
[1736317871697,2.44,195.51,195.45,23.776884]
[1736317872207,0.12549,195.5,195.45,23.776884]
[1736317872508,0.12549,195.56,195.45,23.776884]
[1736317872671,30.0,195.64,195.45,45.24958491]
[1736317872876,20.495147,195.62,195.48,23.776884]
[1736317873097,2.44,195.63,195.5,23.776884]
[1736317873310,2.44,195.63,195.48,23.776884]
[1736317873311,20.0,195.61,195.48,23.776884]
[1736317873602,0.12549,195.59,195.48,23.776884]
[1736317874174,0.12549,195.57,195.48,23.776884]
[1736317874380,0.12549,195.57,195.5,23.776884]
[1736317875096,0.12549,195.57,195.49,23.776884]
[1736317875896,0.12549,195.57,195.5,0.76699095]
[1736317876485,30.0,195.68,195.52,23.776884]
[1736317876680,19.26812072,195.69,195.54,29.781484]
[1736317876880,2.44,195.68,195.54,30.54829039]
[1736317877075,2.44,195.67,195.54,29.781484]
[1736317877281,0.12549,195.66,195.54,29.781484]
[1736317877498,2.44,195.65,195.56,23.776884]
[1736317877719,0.12549,195.68,195.56,23.776884]
[1736317877875,2.44,195.67,195.56,23.776884]
[1736317878206,0.12549,195.65,195.58,23.776884]
[1736317878518,0.12549,195.63,195.58,23.776884]
[1736317879016,0.12549,195.65,195.58,23.776884]
[1736317879178,0.12549,195.63,195.58,23.776884]
[1736317880010,20.0,195.66,195.58,23.776884]
[1736317880303,0.12549,195.64,195.58,23.776884]
[1736317881089,0.12549,195.64,195.57,1.574]
[1736317881290,20.12549,195.64,195.57,1.574]
[1736317881689,0.12549,195.61,195.54,6.0046]
[1736317882006,0.12549,195.59,195.54,6.0046]
[1736317882188,0.12549,195.57,195.54,6.0046]
[1736317882396,0.12549,195.57,195.52,1.5222]
[1736317884789,0.12549,195.57,195.53,23.776884]
[1736317885389,0.12549,195.57,195.52,1.5222]
[1736317885984,0.12549,195.57,195.48,8.1982]
[1736317886490,0.12549,195.53,195.48,8.1982]
[1736317888515,2.44,195.58,195.49,23.776884]
[1736317888810,22.44,195.58,195.49,23.776884]
[1736317889008,0.12549,195.57,195.49,23.776884]
[1736317890010,0.12549,195.57,195.48,8.1982]
[1736317891109,0.12549,195.57,195.45,23.776884]
[1736317891296,0.12549,195.49,195.43,0.09166339]
[1736317891590,0.12549,195.47,195.43,0.09166339]
[1736317897705,20.0,195.51,195.43,0.09166339]
[1736317897891,2.44,195.47,195.43,0.09166339]
[1736317898088,0.12549,195.48,195.43,0.09166339]
[1736317898290,20.501487,195.55,195.43,16.56445533]
[1736317898493,2.44,195.54,195.44,36.871284]
[1736317898693,2.44,195.54,195.44,31.871284]
[1736317898995,0.12549,195.53,195.45,0.76724831]
[1736317899213,0.12549,195.53,195.44,31.871284]
[1736317900609,0.12549,195.53,195.45,0.76718925]
[1736317901818,0.12549,195.53,195.46,23.776884]
[1736317902817,0.12549,195.53,195.45,23.776884]
[1736317903019,0.12549,195.53,195.44,8.86155617]
[1736317903311,0.12549,195.53,195.44,8.0944]
[1736317903542,20.12549,195.53,195.44,8.0944]
[1736317903698,20.12549,195.53,195.45,23.776884]
[1736317904718,20.12549,195.53,195.44,8.0944]
[1736317905230,0.12549,195.5,195.44,8.0944]
[1736317905405,0.12549,195.5,195.43,0.09166339]
[1736317905594,0.12549,195.48,195.43,0.09166339]
[1736317905794,0.12549,195.46,195.43,0.09166339]
[1736317906019,1.76,195.47,195.43,0.09166339]
[1736317912903,21.76,195.47,195.43,0.09166339]
[1736317913708,1.76,195.47,195.43,0.09166339]
[1736317919602,21.76,195.47,195.43,0.09166339]
[1736317921915,30.0,195.45,195.43,0.09166339]
[1736317922125,0.12549,195.44,195.43,0.09166339]
[1736317922627,20.0,195.44,195.43,0.09166339]
[1736317922814,20.12549,195.44,195.43,0.09166339]
[1736317924908,2.58549,195.44,195.43,0.09166339]
[1736317926749,0.12549,195.44,195.43,0.09166339]
[1736317926904,2.58549,195.44,195.43,0.09166339]
[1736317936451,22.58549,195.44,195.43,0.09166339]
[1736317936830,52.58549,195.44,195.43,0.09166339]
[1736317938142,22.58549,195.44,195.43,0.09166339]
[1736317938333,2.58549,195.44,195.43,0.09166339]
[1736317940440,22.58549,195.44,195.43,0.09166339]
[1736317943628,52.58549,195.44,195.43,0.09166339]
[1736317944644,22.58549,195.44,195.43,0.09166339]
[1736317944852,2.58549,195.44,195.43,0.09166339]
[1736317945031,22.58549,195.44,195.43,0.09166339]
[1736317945756,2.58549,195.44,195.43,0.09166339]
[1736317946148,0.12549,195.44,195.43,0.09166339]
[1736317946359,2.56549,195.44,195.43,0.09166339]
[1736317948034,22.56549,195.44,195.43,0.09166339]
[1736317948556,2.56549,195.44,195.43,0.09166339]
[1736317950761,22.56549,195.44,195.43,0.09166339]
[1736317953340,0.12549,195.44,195.43,0.09166339]
[1736317953746,2.56549,195.44,195.43,0.09166339]
[1736317956351,0.12549,195.44,195.43,31.45054739]
[1736317957067,17.93146233,195.48,195.44,23.776884]
[1736317957255,17.93146233,195.48,195.43,7.67366339]
[1736317957562,20.37146233,195.48,195.43,7.67366339]
[1736317957873,20.37146233,195.48,195.44,23.776884]
[1736317958371,20.0,195.45,195.44,23.776884]
[1736317961971,20.37146233,195.48,195.44,23.776884]
[1736317961972,17.93146233,195.48,195.44,23.776884]
[1736317962469,0.12549,195.5,195.44,23.776884]
[1736317962672,0.12549,195.5,195.46,23.776884]
[1736317962870,7.89095372,195.58,195.46,23.776884]
[1736317963074,2.44,195.57,195.5,23.776884]
[1736317963374,2.44,195.56,195.52,23.776884]
[1736317963549,0.12549,195.6,195.52,23.776884]
[1736317963874,0.12549,195.58,195.52,23.776884]
[1736317964772,20.12549,195.58,195.51,6.4972]
[1736317964983,0.12549,195.52,195.46,6.156]
[1736317965199,0.12549,195.5,195.46,6.156]
[1736317965485,20.12549,195.48,195.43,0.09166339]
[1736317965690,0.12549,195.46,195.43,0.09166339]
[1736317969184,20.0,195.49,195.43,0.09166339]
[1736317969478,2.44,195.48,195.43,0.09166339]
[1736317969664,0.12549,195.46,195.43,0.09166339]
[1736317969868,2.56549,195.46,195.43,0.09166339]
[1736317976674,20.0,195.45,195.43,0.09166339]
[1736317976978,0.12549,195.44,195.43,0.09166339]
[1736317977569,20.12549,195.44,195.43,0.09166339]
[1736317977987,17.92282777,195.44,195.43,0.09166339]
[1736317979500,54.46922777,195.44,195.25,0.76783356]
[1736317979713,0.12549,195.35,195.21,0.76795223]
[1736317979863,6.5464,195.38,195.21,0.76795223]
[1736317979864,0.12549,195.33,195.21,0.76795223]
[1736317980195,0.12549,195.31,195.2,1.5763]
[1736317980385,20.0,195.3,195.2,1.5763]
[1736317980885,0.12549,195.27,195.2,0.0513]
[1736317981082,0.12549,195.25,195.2,0.0513]
[1736317981269,20.0,195.22,195.2,0.0513]
[1736317981475,2.44,195.21,195.2,0.0513]
[1736317981658,2.56549,195.21,195.2,0.0513]
[1736317981983,0.12549,195.19,195.07,8.03465565]
[1736317982185,18.5,195.17,195.07,8.03465565]
[1736317982491,5.0,195.19,195.04,152.13862262]
[1736317982492,30.0,195.19,195.04,120.0]
[1736317982682,30.0,195.17,195.04,120.0]
[1736317983003,5.0,195.19,195.04,120.0]
[1736317983004,5.0,195.12,195.04,120.0]
[1736317983203,5.0,195.09,195.08,18.4769]
[1736317983358,5.0,195.05,195.04,120.0]
[1736317983760,24.71695844,195.05,195.04,120.0]
[1736317983976,54.71695844,195.05,195.04,105.76]
[1736317984206,311.71379876,195.05,195.04,48.8]
[1736317984685,316.71379876,195.05,195.04,48.8]
[1736317984864,316.71379876,195.05,195.04,7.78544358]